[Event "Betsys MČR v online bleskovém šachu 2021"]
[Site "Chess.com"]
[Date "2021.04.17"]
[Round "7"]
[White "machonza"]
[Black "nw_tynka"]
[Result "1-0"]
[WhiteElo "1994"]
[BlackElo "2177"]
[TimeControl "180+1"]
[EndTime "10:11:52 PDT"]
[Termination "Uživatel machonza zvítězil matem"]

1. e4 {[%clk 0:03:00.9]} 1... c5 {[%clk 0:02:59.5]} 2. Nf3 {[%clk 0:02:59.9]}
2... Nc6 {[%clk 0:02:58.3]} 3. Bb5 {[%clk 0:02:53]} 3... g6 {[%clk 0:02:57.5]}
4. O-O {[%clk 0:02:51.6]} 4... Bg7 {[%clk 0:02:57.1]} 5. Re1 {[%clk 0:02:49.7]}
5... e5 {[%clk 0:02:52]} 6. c3 {[%clk 0:02:47]} 6... Nge7 {[%clk 0:02:51]} 7. d3
{[%clk 0:02:30.1]} 7... O-O {[%clk 0:02:47.6]} 8. Bg5 {[%clk 0:02:28.2]} 8... h6
{[%clk 0:02:44]} 9. Be3 {[%clk 0:02:20]} 9... d6 {[%clk 0:02:28]} 10. Nbd2
{[%clk 0:02:09.4]} 10... a6 {[%clk 0:02:25.1]} 11. Ba4 {[%clk 0:02:06.8]} 11...
b5 {[%clk 0:02:23]} 12. Bb3 {[%clk 0:02:05.9]} 12... Kh7 {[%clk 0:02:16.5]} 13.
a4 {[%clk 0:01:57.2]} 13... Bb7 {[%clk 0:02:08.8]} 14. Nf1 {[%clk 0:01:46.7]}
14... Na5 {[%clk 0:02:01.8]} 15. Bc2 {[%clk 0:01:45.6]} 15... f5 {[%clk
0:01:55.2]} 16. h3 {[%clk 0:01:28.5]} 16... f4 {[%clk 0:01:52.2]} 17. Bd2 {[%clk
0:01:24.1]} 17... Nac6 {[%clk 0:01:33.9]} 18. N1h2 {[%clk 0:01:15.2]} 18... Ng8
{[%clk 0:01:30]} 19. Qc1 {[%clk 0:01:09.7]} 19... Nf6 {[%clk 0:01:22.7]} 20. d4
{[%clk 0:01:08.3]} 20... cxd4 {[%clk 0:00:57.2]} 21. cxd4 {[%clk 0:01:07]} 21...
Rc8 {[%clk 0:00:56.6]} 22. Qb1 {[%clk 0:00:54.5]} 22... bxa4 {[%clk 0:00:34.9]}
23. Bxa4 {[%clk 0:00:51.7]} 23... Nxd4 {[%clk 0:00:31.3]} 24. Nxd4 {[%clk
0:00:50.1]} 24... exd4 {[%clk 0:00:30.5]} 25. Bxf4 {[%clk 0:00:47.7]} 25... Bc6
{[%clk 0:00:26.2]} 26. Bc2 {[%clk 0:00:40.2]} 26... Bd7 {[%clk 0:00:18.2]} 27.
e5 {[%clk 0:00:36.3]} 27... dxe5 {[%clk 0:00:17.6]} 28. Bxg6+ {[%clk 0:00:35.1]}
28... Kh8 {[%clk 0:00:17.2]} 29. Bxe5 {[%clk 0:00:34.9]} 29... Bb5 {[%clk
0:00:15.8]} 30. Qd1 {[%clk 0:00:26.2]} 30... d3 {[%clk 0:00:15]} 31. Qd2 {[%clk
0:00:20.7]} 31... Qd5 {[%clk 0:00:13.4]} 32. Qf4 {[%clk 0:00:19.5]} 32... Rc2
{[%clk 0:00:09.3]} 33. Ng4 {[%clk 0:00:15.7]} 33... Nxg4 {[%clk 0:00:07.6]} 34.
Qxf8+ {[%clk 0:00:14.6]} 34... Qg8 {[%clk 0:00:07.3]} 35. Bxg7# {[%clk
0:00:14.5]} 1-0

[Event "Betsys MČR v online bleskovém šachu 2021"]
[Site "Chess.com"]
[Date "2021.04.17"]
[Round "7"]
[White "CZpeeeter"]
[Black "Patrik_Kohm"]
[Result "0-1"]
[WhiteElo "1714"]
[BlackElo "1399"]
[TimeControl "180+1"]
[EndTime "10:11:52 PDT"]
[Termination "Uživatel Patrik_Kohm zvítězil po vzdání soupeře"]

1. d4 {[%clk 0:03:00.9]} 1... d5 {[%clk 0:02:59.8]} 2. Nf3 {[%clk 0:02:59.6]}
2... Nf6 {[%clk 0:02:59]} 3. e3 {[%clk 0:02:59.2]} 3... Nc6 {[%clk 0:02:59]} 4.
Bd3 {[%clk 0:02:58.9]} 4... e6 {[%clk 0:02:57.6]} 5. b3 {[%clk 0:02:58.7]} 5...
Bd6 {[%clk 0:02:56.9]} 6. Bb2 {[%clk 0:02:57.5]} 6... Bd7 {[%clk 0:02:57]} 7.
Nbd2 {[%clk 0:02:57.4]} 7... O-O {[%clk 0:02:56.5]} 8. O-O {[%clk 0:02:57.4]}
8... Qe7 {[%clk 0:02:53.8]} 9. Ne5 {[%clk 0:02:54.4]} 9... Bxe5 {[%clk
0:02:51.2]} 10. dxe5 {[%clk 0:02:50.9]} 10... Ne8 {[%clk 0:02:51.3]} 11. f4
{[%clk 0:02:50.3]} 11... f6 {[%clk 0:02:51]} 12. exf6 {[%clk 0:02:43]} 12...
Nxf6 {[%clk 0:02:50.3]} 13. Nf3 {[%clk 0:02:36.6]} 13... Rae8 {[%clk 0:02:38.4]}
14. Ne5 {[%clk 0:02:31.6]} 14... Nxe5 {[%clk 0:02:36.1]} 15. Bxe5 {[%clk
0:02:29.2]} 15... c5 {[%clk 0:02:33.7]} 16. Rf3 {[%clk 0:02:21.6]} 16... Bc6
{[%clk 0:02:26.4]} 17. Rh3 {[%clk 0:02:20.1]} 17... h6 {[%clk 0:02:15.5]} 18. c4
{[%clk 0:02:13.7]} 18... dxc4 {[%clk 0:02:12.8]} 19. Bxc4 {[%clk 0:02:13.8]}
19... Bd5 {[%clk 0:02:10.7]} 20. Bxf6 {[%clk 0:02:06.5]} 20... Rxf6 {[%clk
0:02:05.4]} 21. Bxd5 {[%clk 0:02:04.5]} 21... exd5 {[%clk 0:02:05.4]} 22. Qxd5+
{[%clk 0:02:03.6]} 22... Kh8 {[%clk 0:02:00.8]} 23. Rd1 {[%clk 0:01:55.4]} 23...
b6 {[%clk 0:01:54.8]} 24. Qd7 {[%clk 0:01:52.6]} 24... Qf8 {[%clk 0:01:52.2]}
25. Qxa7 {[%clk 0:01:45.7]} 25... Ra8 {[%clk 0:01:48.2]} 26. Qd7 {[%clk
0:01:38.7]} 26... Rxa2 {[%clk 0:01:46.1]} 27. Qd8 {[%clk 0:01:38.3]} 27... Rb2
{[%clk 0:01:43.9]} 28. Qxf8+ {[%clk 0:01:35.4]} 28... Rxf8 {[%clk 0:01:43.6]}
29. Rd3 {[%clk 0:01:34.3]} 29... Ra8 {[%clk 0:01:40.6]} 30. Rf3 {[%clk
0:01:28.2]} 30... Raa2 {[%clk 0:01:37.4]} 31. h3 {[%clk 0:00:56]} 31... Rxg2+
{[%clk 0:01:35.9]} 32. Kf1 {[%clk 0:00:55.9]} 32... Rh2 {[%clk 0:01:33.5]} 33.
Kg1 {[%clk 0:00:47.5]} 33... Rhb2 {[%clk 0:01:28.3]} 34. Rd1 {[%clk 0:00:45.2]}
34... Rxb3 {[%clk 0:01:26.7]} 35. f5 {[%clk 0:00:41.8]} 35... Kg8 {[%clk
0:01:25.6]} 36. f6 {[%clk 0:00:40.1]} 36... gxf6 {[%clk 0:01:22.7]} 37. Rxf6
{[%clk 0:00:37.6]} 37... Kg7 {[%clk 0:01:21.8]} 38. Rf3 {[%clk 0:00:37.2]} 38...
c4 {[%clk 0:01:20.5]} 39. Rg3+ {[%clk 0:00:36.8]} 39... Kf6 {[%clk 0:01:19.6]}
40. Rf3+ {[%clk 0:00:33.3]} 40... Ke5 {[%clk 0:01:19.3]} 41. Rf2 {[%clk
0:00:25.5]} 41... Raa3 {[%clk 0:01:15.3]} 42. Rc2 {[%clk 0:00:22.4]} 42... b5
{[%clk 0:01:12.3]} 43. e4 {[%clk 0:00:18.5]} 43... Rxh3 {[%clk 0:01:11]} 44.
Rd5+ {[%clk 0:00:16.7]} 44... Kxe4 {[%clk 0:01:09.9]} 45. Rxb5 {[%clk
0:00:16.8]} 45... Rag3+ {[%clk 0:01:06.3]} 46. Kf1 {[%clk 0:00:16.4]} 46... Rh1+
{[%clk 0:01:03.8]} 47. Kf2 {[%clk 0:00:15.7]} 47... Rh2+ {[%clk 0:01:03.7]} 48.
Kxg3 {[%clk 0:00:16.1]} 48... Rxc2 {[%clk 0:01:04.2]} 49. Rh5 {[%clk 0:00:16.2]}
49... Rd2 {[%clk 0:00:59.3]} 50. Rh4+ {[%clk 0:00:14.2]} 50... Kd3 {[%clk
0:00:57.5]} 51. Rxh6 {[%clk 0:00:14.5]} 51... c3 {[%clk 0:00:57.8]} 52. Rd6+
{[%clk 0:00:14.4]} 52... Ke2 {[%clk 0:00:56.7]} 53. Re6+ {[%clk 0:00:14.2]}
53... Kd1 {[%clk 0:00:56.7]} 54. Rc6 {[%clk 0:00:14.4]} 54... c2 {[%clk
0:00:56.6]} 0-1

[Event "Betsys MČR v online bleskovém šachu 2021"]
[Site "Chess.com"]
[Date "2021.04.17"]
[Round "7"]
[White "VOJTASEK2009"]
[Black "Alesbar"]
[Result "0-1"]
[WhiteElo "1279"]
[BlackElo "1610"]
[TimeControl "180+1"]
[EndTime "10:11:52 PDT"]
[Termination "Uživatel Alesbar zvítězil na čas"]

1. e4 {[%clk 0:03:00.9]} 1... c5 {[%clk 0:02:59.4]} 2. Nf3 {[%clk 0:03:00.1]}
2... d6 {[%clk 0:02:59.3]} 3. d4 {[%clk 0:02:59.8]} 3... cxd4 {[%clk 0:02:59.4]}
4. Nxd4 {[%clk 0:03:00]} 4... Nf6 {[%clk 0:02:59.3]} 5. Nc3 {[%clk 0:02:57.8]}
5... a6 {[%clk 0:02:59.2]} 6. Be3 {[%clk 0:02:56.9]} 6... e6 {[%clk 0:02:59]} 7.
Ke2 {[%clk 0:02:56.3]} 7... Be7 {[%clk 0:02:57.1]} 8. Ke1 {[%clk 0:02:56.4]}
8... Nbd7 {[%clk 0:02:53.9]} 9. Be2 {[%clk 0:02:56.2]} 9... Qc7 {[%clk
0:02:53.4]} 10. f3 {[%clk 0:02:53.1]} 10... b5 {[%clk 0:02:48.1]} 11. a3 {[%clk
0:02:52]} 11... Bb7 {[%clk 0:02:46.4]} 12. Kf2 {[%clk 0:02:51.2]} 12... Rc8
{[%clk 0:02:42.5]} 13. Rf1 {[%clk 0:02:50.5]} 13... O-O {[%clk 0:02:41.8]} 14.
Kg1 {[%clk 0:02:49.1]} 14... Rfd8 {[%clk 0:02:40.1]} 15. Qd2 {[%clk 0:02:44.8]}
15... Ne5 {[%clk 0:02:38.2]} 16. f4 {[%clk 0:02:30.7]} 16... Nc4 {[%clk
0:02:37]} 17. Bxc4 {[%clk 0:02:28]} 17... Qxc4 {[%clk 0:02:35.5]} 18. e5 {[%clk
0:02:21.6]} 18... dxe5 {[%clk 0:02:25.5]} 19. fxe5 {[%clk 0:02:17.8]} 19... Ng4
{[%clk 0:02:06.4]} 20. Rf3 {[%clk 0:01:54.8]} 20... Nxe5 {[%clk 0:02:02.1]} 21.
Rg3 {[%clk 0:01:42.9]} 21... Ng6 {[%clk 0:02:01.2]} 22. Qf2 {[%clk 0:01:30.1]}
22... Bf6 {[%clk 0:01:45.7]} 23. Nb3 {[%clk 0:01:25.4]} 23... Bxc3 {[%clk
0:01:37.7]} 24. bxc3 {[%clk 0:01:21.2]} 24... Qd5 {[%clk 0:01:17.9]} 25. Bb6
{[%clk 0:00:58.8]} 25... Qd1+ {[%clk 0:01:10.7]} 26. Rxd1 {[%clk 0:00:48.4]}
26... Rxd1+ {[%clk 0:01:09.8]} 27. Qf1 {[%clk 0:00:47.5]} 27... Rxf1+ {[%clk
0:01:09.3]} 28. Kxf1 {[%clk 0:00:47.8]} 28... Ne5 {[%clk 0:01:02.4]} 29. Bd4
{[%clk 0:00:40.6]} 29... Ng6 {[%clk 0:01:01.9]} 30. Na5 {[%clk 0:00:34.1]} 30...
Ba8 {[%clk 0:00:54.3]} 31. Rg4 {[%clk 0:00:20.4]} 31... f6 {[%clk 0:00:51.4]}
32. Be3 {[%clk 0:00:17.7]} 32... Rxc3 {[%clk 0:00:42.5]} 33. Bd2 {[%clk
0:00:14.4]} 33... Rxc2 {[%clk 0:00:41.2]} 34. Bb4 {[%clk 0:00:13.2]} 34... Kf7
{[%clk 0:00:36.8]} 35. Rd4 {[%clk 0:00:11.9]} 35... Bd5 {[%clk 0:00:34.3]} 36.
Ke1 {[%clk 0:00:06]} 36... Rxg2 {[%clk 0:00:32.2]} 37. Kf1 {[%clk 0:00:04.8]}
37... Rxh2 {[%clk 0:00:31.1]} 38. Ke1 {[%clk 0:00:03.5]} 38... Rc2 {[%clk
0:00:29.5]} 0-1

[Event "Betsys MČR v online bleskovém šachu 2021"]
[Site "Chess.com"]
[Date "2021.04.17"]
[Round "7"]
[White "fortale"]
[Black "petr812"]
[Result "1-0"]
[WhiteElo "2337"]
[BlackElo "2140"]
[TimeControl "180+1"]
[EndTime "10:11:57 PDT"]
[Termination "Uživatel fortale zvítězil matem"]

1. e4 {[%clk 0:03:00.9]} 1... f6 {[%clk 0:02:57.3]} 2. d4 {[%clk 0:02:59.1]}
2... e6 {[%clk 0:02:54.8]} 3. Nc3 {[%clk 0:02:58.9]} 3... Bb4 {[%clk 0:02:52.9]}
4. Bd3 {[%clk 0:02:57.4]} 4... Ne7 {[%clk 0:02:52.2]} 5. f4 {[%clk 0:02:56.3]}
5... d5 {[%clk 0:02:51.5]} 6. e5 {[%clk 0:02:46.6]} 6... f5 {[%clk 0:02:47.7]}
7. a3 {[%clk 0:02:44.5]} 7... Bxc3+ {[%clk 0:02:44.9]} 8. bxc3 {[%clk
0:02:45.4]} 8... b6 {[%clk 0:02:42.1]} 9. Nf3 {[%clk 0:02:45.1]} 9... c5 {[%clk
0:02:41.2]} 10. O-O {[%clk 0:02:42.9]} 10... Nbc6 {[%clk 0:02:40.6]} 11. Bb5
{[%clk 0:02:29.2]} 11... Bd7 {[%clk 0:02:37.4]} 12. Be3 {[%clk 0:02:23.9]} 12...
c4 {[%clk 0:02:33.2]} 13. Ng5 {[%clk 0:02:17.5]} 13... h6 {[%clk 0:02:18.8]} 14.
Bxc6 {[%clk 0:02:14.4]} 14... hxg5 {[%clk 0:01:56.5]} 15. Bxa8 {[%clk
0:02:12.4]} 15... g4 {[%clk 0:01:54.2]} 16. Bb7 {[%clk 0:02:06.9]} 16... b5
{[%clk 0:01:42.8]} 17. a4 {[%clk 0:01:58.8]} 17... Qb6 {[%clk 0:01:39.3]} 18.
axb5 {[%clk 0:01:54.3]} 18... Qxb7 {[%clk 0:01:35.9]} 19. Qb1 {[%clk 0:01:52]}
19... Nc8 {[%clk 0:01:21.9]} 20. Qb4 {[%clk 0:01:43.8]} 20... Qxb5 {[%clk
0:01:16.8]} 21. Rfb1 {[%clk 0:01:39.3]} 21... a6 {[%clk 0:01:07.7]} 22. Qa3
{[%clk 0:01:29.6]} 22... Qc6 {[%clk 0:01:03.4]} 23. Qxa6 {[%clk 0:01:27.5]}
23... Qxa6 {[%clk 0:01:00.6]} 24. Rxa6 {[%clk 0:01:28.4]} 24... O-O {[%clk
0:00:58.3]} 25. Rb7 {[%clk 0:01:23.2]} 25... Rf7 {[%clk 0:00:34.4]} 26. Ra8
{[%clk 0:01:22.1]} 26... Kh7 {[%clk 0:00:29.5]} 27. Rxd7 {[%clk 0:01:18.1]}
27... Rxd7 {[%clk 0:00:28.9]} 28. Rxc8 {[%clk 0:01:18.2]} 28... Rb7 {[%clk
0:00:27.8]} 29. Rc6 {[%clk 0:01:17.4]} 29... Rb2 {[%clk 0:00:25.9]} 30. Rxe6
{[%clk 0:01:16]} 30... Rxc2 {[%clk 0:00:25.9]} 31. Rd6 {[%clk 0:01:13.5]} 31...
Rxc3 {[%clk 0:00:25.7]} 32. Kf2 {[%clk 0:01:05]} 32... Rc2+ {[%clk 0:00:25.5]}
33. Ke1 {[%clk 0:01:04.6]} 33... Kg8 {[%clk 0:00:17.6]} 34. e6 {[%clk
0:00:53.2]} 34... Rxg2 {[%clk 0:00:16.6]} 35. Rd8+ {[%clk 0:00:52.6]} 35... Kh7
{[%clk 0:00:15.7]} 36. e7 {[%clk 0:00:52.3]} 36... Rxh2 {[%clk 0:00:15.2]} 37.
e8=Q {[%clk 0:00:52.2]} 37... Rh1+ {[%clk 0:00:14.3]} 38. Kf2 {[%clk 0:00:51.4]}
38... Rh2+ {[%clk 0:00:13.2]} 39. Kg1 {[%clk 0:00:51.2]} 39... g3 {[%clk
0:00:11.3]} 40. Qg8+ {[%clk 0:00:47.9]} 40... Kh6 {[%clk 0:00:11.4]} 41. Rd6+
{[%clk 0:00:47.4]} 41... Kh5 {[%clk 0:00:11.5]} 42. Qf7+ {[%clk 0:00:46.2]}
42... Kg4 {[%clk 0:00:10.2]} 43. Rg6+ {[%clk 0:00:41.3]} 43... Kf3 {[%clk
0:00:10]} 44. Qxd5+ {[%clk 0:00:41.4]} 44... Kxe3 {[%clk 0:00:09.8]} 45. Rxg3+
{[%clk 0:00:41.3]} 45... Kxf4 {[%clk 0:00:08.1]} 46. Kxh2 {[%clk 0:00:40.7]}
46... g5 {[%clk 0:00:07.6]} 47. Qf3# {[%clk 0:00:39.9]} 1-0

[Event "Betsys MČR v online bleskovém šachu 2021"]
[Site "Chess.com"]
[Date "2021.04.17"]
[Round "7"]
[White "JustFilip05"]
[Black "elftom"]
[Result "0-1"]
[WhiteElo "2125"]
[BlackElo "1974"]
[TimeControl "180+1"]
[EndTime "10:11:57 PDT"]
[Termination "Uživatel elftom zvítězil matem"]

1. d4 {[%clk 0:03:00.9]} 1... Nf6 {[%clk 0:02:57.5]} 2. Nc3 {[%clk 0:03:00.4]}
2... c6 {[%clk 0:02:53.5]} 3. e4 {[%clk 0:02:51.9]} 3... d5 {[%clk 0:02:48.7]}
4. e5 {[%clk 0:02:50]} 4... Nfd7 {[%clk 0:02:24.7]} 5. f4 {[%clk 0:02:49.5]}
5... Nb6 {[%clk 0:02:22.9]} 6. Bd3 {[%clk 0:02:44.1]} 6... g6 {[%clk 0:02:22]}
7. Nce2 {[%clk 0:02:44.1]} 7... Bg4 {[%clk 0:02:20.1]} 8. h3 {[%clk 0:02:42.7]}
8... Bxe2 {[%clk 0:02:19.1]} 9. Qxe2 {[%clk 0:02:43.6]} 9... Bg7 {[%clk
0:02:19.4]} 10. c3 {[%clk 0:02:43.9]} 10... e6 {[%clk 0:02:18.8]} 11. g4 {[%clk
0:02:44.2]} 11... N8d7 {[%clk 0:02:18.1]} 12. Be3 {[%clk 0:02:43.6]} 12... Qc7
{[%clk 0:02:17.2]} 13. Nf3 {[%clk 0:02:38.9]} 13... c5 {[%clk 0:02:16.2]} 14.
dxc5 {[%clk 0:02:21.7]} 14... Nxc5 {[%clk 0:02:14.4]} 15. Bb5+ {[%clk
0:02:21.9]} 15... Ke7 {[%clk 0:02:05.4]} 16. f5 {[%clk 0:02:16.4]} 16... gxf5
{[%clk 0:02:04.7]} 17. Bg5+ {[%clk 0:02:14]} 17... f6 {[%clk 0:01:57.6]} 18.
exf6+ {[%clk 0:02:14.1]} 18... Bxf6 {[%clk 0:01:57.2]} 19. O-O-O {[%clk
0:01:59]} 19... Bxg5+ {[%clk 0:01:53.1]} 20. Nxg5 {[%clk 0:01:59.9]} 20... Qf4+
{[%clk 0:01:52.6]} 21. Qd2 {[%clk 0:01:55.3]} 21... Qxd2+ {[%clk 0:01:51.8]} 22.
Rxd2 {[%clk 0:01:55.8]} 22... Ne4 {[%clk 0:01:46.4]} 23. Nxe4 {[%clk 0:01:52.7]}
23... fxe4 {[%clk 0:01:45.9]} 24. Rf1 {[%clk 0:01:43.4]} 24... Rhf8 {[%clk
0:01:45.1]} 25. a4 {[%clk 0:01:30.7]} 25... a6 {[%clk 0:01:40.9]} 26. Rxf8
{[%clk 0:01:20.1]} 26... Rxf8 {[%clk 0:01:39]} 27. a5 {[%clk 0:01:06.7]} 27...
axb5 {[%clk 0:01:31.1]} 28. axb6 {[%clk 0:01:06.9]} 28... Rf1+ {[%clk
0:01:27.2]} 29. Rd1 {[%clk 0:00:46.3]} 29... Rf3 {[%clk 0:01:26.3]} 30. Rh1
{[%clk 0:00:45.5]} 30... Rg3 {[%clk 0:01:24.5]} 31. Kd2 {[%clk 0:00:40]} 31...
Kd6 {[%clk 0:01:23.2]} 32. b3 {[%clk 0:00:38.2]} 32... Kc5 {[%clk 0:01:22.5]}
33. b4+ {[%clk 0:00:31.5]} 33... Kxb6 {[%clk 0:01:21]} 34. Kc2 {[%clk
0:00:31.8]} 34... Kc6 {[%clk 0:01:19.9]} 35. Kd2 {[%clk 0:00:31.7]} 35... Kd6
{[%clk 0:01:19.9]} 36. Rh2 {[%clk 0:00:31.5]} 36... e5 {[%clk 0:01:19.5]} 37.
Kc2 {[%clk 0:00:31.2]} 37... d4 {[%clk 0:01:19.1]} 38. cxd4 {[%clk 0:00:25.4]}
38... exd4 {[%clk 0:01:18.6]} 39. Kb2 {[%clk 0:00:26.1]} 39... Kd5 {[%clk
0:01:18]} 40. Rc2 {[%clk 0:00:24.4]} 40... Rxh3 {[%clk 0:01:14.5]} 41. Rc5+
{[%clk 0:00:25]} 41... Kd6 {[%clk 0:01:14]} 42. Rxb5 {[%clk 0:00:25.7]} 42...
Rh2+ {[%clk 0:01:09.8]} 43. Kc1 {[%clk 0:00:25.6]} 43... e3 {[%clk 0:01:04.8]}
44. Rxb7 {[%clk 0:00:24.8]} 44... d3 {[%clk 0:01:04.1]} 45. Rb8 {[%clk
0:00:18.5]} 45... Rh1+ {[%clk 0:01:02.6]} 46. Kb2 {[%clk 0:00:17.8]} 46... d2
{[%clk 0:00:51.8]} 47. Rd8+ {[%clk 0:00:13.3]} 47... Ke7 {[%clk 0:00:51.6]} 48.
Rd3 {[%clk 0:00:13.3]} 48... d1=Q {[%clk 0:00:50.7]} 49. Rxe3+ {[%clk
0:00:14.2]} 49... Kf7 {[%clk 0:00:50]} 50. Rb3 {[%clk 0:00:13.5]} 50... Rh2+
{[%clk 0:00:45.8]} 51. Ka3 {[%clk 0:00:13.8]} 51... Qa1# {[%clk 0:00:45.3]} 0-1

[Event "Betsys MČR v online bleskovém šachu 2021"]
[Site "Chess.com"]
[Date "2021.04.17"]
[Round "7"]
[White "dnovotny"]
[Black "RunningPawnz88"]
[Result "0-1"]
[WhiteElo "1717"]
[BlackElo "1356"]
[TimeControl "180+1"]
[EndTime "10:11:57 PDT"]
[Termination "Uživatel RunningPawnz88 zvítězil na čas"]

1. d4 {[%clk 0:03:00.9]} 1... Nf6 {[%clk 0:02:58.1]} 2. Nc3 {[%clk 0:03:01.2]}
2... e6 {[%clk 0:02:58.2]} 3. e4 {[%clk 0:02:54.2]} 3... d6 {[%clk 0:02:56.2]}
4. f4 {[%clk 0:02:45.1]} 4... Nbd7 {[%clk 0:02:49.4]} 5. Nf3 {[%clk 0:02:44.1]}
5... c5 {[%clk 0:02:04.6]} 6. Bb5 {[%clk 0:01:56.6]} 6... Be7 {[%clk 0:01:56.1]}
7. dxc5 {[%clk 0:01:54.9]} 7... dxc5 {[%clk 0:01:52.2]} 8. e5 {[%clk 0:01:44.2]}
8... Nd5 {[%clk 0:01:49.1]} 9. Bxd7+ {[%clk 0:01:07.9]} 9... Qxd7 {[%clk
0:01:45.3]} 10. Ne4 {[%clk 0:01:01.1]} 10... O-O {[%clk 0:01:41.7]} 11. O-O
{[%clk 0:00:56.3]} 11... f6 {[%clk 0:01:26.1]} 12. exf6 {[%clk 0:00:40]} 12...
Bxf6 {[%clk 0:01:26]} 13. Nxc5 {[%clk 0:00:38.5]} 13... Qb5 {[%clk 0:01:10.3]}
14. Nd3 {[%clk 0:00:24.3]} 14... Rd8 {[%clk 0:01:02.5]} 15. Bd2 {[%clk
0:00:23.8]} 15... Nb6 {[%clk 0:00:47.8]} 16. Qe1 {[%clk 0:00:23.5]} 16... Nc4
{[%clk 0:00:44.2]} 17. Bc3 {[%clk 0:00:22.9]} 17... Bxc3 {[%clk 0:00:39]} 18.
Qxc3 {[%clk 0:00:23.8]} 18... Ne3 {[%clk 0:00:31.8]} 19. Rfe1 {[%clk 0:00:22.1]}
19... Qb6 {[%clk 0:00:27.7]} 20. Nc5 {[%clk 0:00:19.2]} 20... Nf5 {[%clk
0:00:13.8]} 21. Kh1 {[%clk 0:00:16]} 21... Bd7 {[%clk 0:00:10.2]} 22. Nxd7
{[%clk 0:00:13.1]} 22... Rxd7 {[%clk 0:00:10.2]} 23. Ne5 {[%clk 0:00:12.9]}
23... Re7 {[%clk 0:00:07.8]} 24. Qa3 {[%clk 0:00:10.3]} 24... Rc7 {[%clk
0:00:07.7]} 25. c3 {[%clk 0:00:07.1]} 25... Rac8 {[%clk 0:00:08.2]} 26. Rad1
{[%clk 0:00:06.6]} 26... Ne3 {[%clk 0:00:08]} 27. Rd3 {[%clk 0:00:05.8]} 27...
Nc2 {[%clk 0:00:08.2]} 28. Qb3 {[%clk 0:00:02.1]} 28... Nxe1 {[%clk 0:00:08.3]}
29. Qxe6+ {[%clk 0:00:01.1]} 29... Qxe6 {[%clk 0:00:06.5]} 0-1

[Event "Betsys MČR v online bleskovém šachu 2021"]
[Site "Chess.com"]
[Date "2021.04.17"]
[Round "7"]
[White "reflexia64"]
[Black "g4g5g4g5"]
[Result "1-0"]
[WhiteElo "2265"]
[BlackElo "2000"]
[TimeControl "180+1"]
[EndTime "10:11:59 PDT"]
[Termination "Uživatel reflexia64 zvítězil na čas"]

1. b3 {[%clk 0:03:00.9]} 1... e5 {[%clk 0:02:59.1]} 2. Bb2 {[%clk 0:02:59.5]}
2... Nc6 {[%clk 0:02:59.2]} 3. e3 {[%clk 0:02:59.1]} 3... d6 {[%clk 0:02:58.4]}
4. g3 {[%clk 0:02:57]} 4... g6 {[%clk 0:02:57.8]} 5. Bg2 {[%clk 0:02:55.1]} 5...
Bg7 {[%clk 0:02:57.9]} 6. Ne2 {[%clk 0:02:53.6]} 6... Nge7 {[%clk 0:02:57.9]} 7.
O-O {[%clk 0:02:52.4]} 7... O-O {[%clk 0:02:57.8]} 8. c4 {[%clk 0:02:50.7]} 8...
f5 {[%clk 0:02:56.2]} 9. f4 {[%clk 0:02:48.8]} 9... Be6 {[%clk 0:02:39.5]} 10.
Nbc3 {[%clk 0:02:45.7]} 10... d5 {[%clk 0:02:26.3]} 11. cxd5 {[%clk 0:02:38]}
11... Nxd5 {[%clk 0:02:27.2]} 12. a3 {[%clk 0:02:36.7]} 12... exf4 {[%clk
0:02:20.3]} 13. Nxf4 {[%clk 0:02:31.6]} 13... Nxf4 {[%clk 0:02:18.5]} 14. Rxf4
{[%clk 0:02:05.9]} 14... Qd7 {[%clk 0:02:15.8]} 15. d4 {[%clk 0:01:54.4]} 15...
Bf7 {[%clk 0:02:06.8]} 16. Na4 {[%clk 0:01:36.6]} 16... b6 {[%clk 0:01:52]} 17.
Qc2 {[%clk 0:01:29.6]} 17... Bd5 {[%clk 0:01:42.7]} 18. Rc1 {[%clk 0:01:27.5]}
18... Na5 {[%clk 0:01:36.1]} 19. Qxc7 {[%clk 0:01:11.6]} 19... Qxc7 {[%clk
0:01:33.6]} 20. Bxd5+ {[%clk 0:01:08.5]} 20... Qf7 {[%clk 0:01:33.4]} 21. Bxf7+
{[%clk 0:01:08.3]} 21... Rxf7 {[%clk 0:01:33.1]} 22. b4 {[%clk 0:01:07.8]} 22...
Nb7 {[%clk 0:01:27.8]} 23. d5 {[%clk 0:01:05.6]} 23... Nd6 {[%clk 0:01:20.9]}
24. Rc6 {[%clk 0:01:00.8]} 24... Rd8 {[%clk 0:01:16.2]} 25. Bxg7 {[%clk
0:00:59.1]} 25... Kxg7 {[%clk 0:01:15.8]} 26. Nc3 {[%clk 0:00:58.3]} 26... Re7
{[%clk 0:01:11.2]} 27. Kf2 {[%clk 0:00:56.5]} 27... Rdd7 {[%clk 0:00:42]} 28.
Rd4 {[%clk 0:00:54.2]} 28... Re5 {[%clk 0:00:36.2]} 29. Kf3 {[%clk 0:00:53.2]}
29... h5 {[%clk 0:00:23.8]} 30. h4 {[%clk 0:00:51.6]} 30... Ne8 {[%clk
0:00:15.5]} 31. Kf4 {[%clk 0:00:39.5]} 31... Ree7 {[%clk 0:00:12]} 32. d6 {[%clk
0:00:22.1]} 32... Re6 {[%clk 0:00:11.3]} 33. Nb5 {[%clk 0:00:20.7]} 33... Kf6
{[%clk 0:00:04.9]} 34. Nc7 {[%clk 0:00:19.7]} 34... Nxd6 {[%clk 0:00:02.2]} 35.
Nb5 {[%clk 0:00:13.5]} 1-0